[Event "Early-Titled-Tuesday-Blitz-June-18-2024"]
[Site "Chess.com"]
[Date "2024.06.18"]
[Round "7"]
[White "Harry_Rakkel"]
[Black "Eduard_Limonov"]
[Result "0-1"]
[WhiteElo "2666"]
[BlackElo "2935"]
[TimeControl "180+1"]
[EndTime "9:20:53 PDT"]
[Termination "Eduard_Limonov won on time"]

1. e4 {[%clk 0:03:00.9]} 1... c6 {[%clk 0:03:00]} 2. d4 {[%clk 0:02:59.3]} 2...
d5 {[%clk 0:03:00.9]} 3. e5 {[%clk 0:02:58.5]} 3... c5 {[%clk 0:03:01.1]} 4. Nf3
{[%clk 0:02:55.9]} 4... cxd4 {[%clk 0:03:01.1]} 5. Nxd4 {[%clk 0:02:53.1]} 5...
Nc6 {[%clk 0:03:01]} 6. Bb5 {[%clk 0:02:47]} 6... Bd7 {[%clk 0:02:59.3]} 7. e6
{[%clk 0:02:41.9]} 7... fxe6 {[%clk 0:02:56.6]} 8. O-O {[%clk 0:02:37.4]} 8...
Nf6 {[%clk 0:02:51.7]} 9. Re1 {[%clk 0:02:28.9]} 9... Nxd4 {[%clk 0:02:44]} 10.
Bxd7+ {[%clk 0:02:27.4]} 10... Qxd7 {[%clk 0:02:44]} 11. Qxd4 {[%clk 0:02:27.1]}
11... g6 {[%clk 0:02:43.9]} 12. Nd2 {[%clk 0:02:17.7]} 12... Bg7 {[%clk
0:02:43.3]} 13. Nf3 {[%clk 0:02:13.9]} 13... O-O {[%clk 0:02:42.6]} 14. Qh4
{[%clk 0:01:43.8]} 14... Ne4 {[%clk 0:02:37.3]} 15. Bh6 {[%clk 0:01:44]} 15...
Bf6 {[%clk 0:02:24.4]} 16. Qg4 {[%clk 0:01:40.9]} 16... Rf7 {[%clk 0:02:22.4]}
17. c3 {[%clk 0:01:22.9]} 17... Qb5 {[%clk 0:02:10.4]} 18. Qxe6 {[%clk
0:01:04.5]} 18... Qxb2 {[%clk 0:02:10.2]} 19. Qxd5 {[%clk 0:00:55.4]} 19...
Qxf2+ {[%clk 0:02:04.3]} 20. Kh1 {[%clk 0:00:54.9]} 20... Nxc3 {[%clk
0:02:01.1]} 21. Qe6 {[%clk 0:00:50.8]} 21... Qb6 {[%clk 0:01:54.6]} 22. Qc4
{[%clk 0:00:44.4]} 22... Qc6 {[%clk 0:01:49.4]} 23. Qb3 {[%clk 0:00:43.3]} 23...
Qd5 {[%clk 0:01:47.9]} 24. Qb4 {[%clk 0:00:38.8]} 24... Nxa2 {[%clk 0:01:43.5]}
25. Qa3 {[%clk 0:00:28.9]} 25... Bxa1 {[%clk 0:01:13.5]} 26. Rxa1 {[%clk
0:00:27.4]} 26... Rc8 {[%clk 0:01:13.7]} 27. Qxa2 {[%clk 0:00:17.7]} 27... Qxa2
{[%clk 0:01:13.3]} 28. Rxa2 {[%clk 0:00:16.9]} 28... a6 {[%clk 0:01:13.3]} 29.
Kg1 {[%clk 0:00:16.5]} 29... Rf5 {[%clk 0:01:07.2]} 30. h4 {[%clk 0:00:15.6]}
30... a5 {[%clk 0:01:01.9]} 31. Re2 {[%clk 0:00:13]} 31... Rc7 {[%clk
0:00:54.6]} 32. Rd2 {[%clk 0:00:12.9]} 32... a4 {[%clk 0:00:44.9]} 33. Rd8+
{[%clk 0:00:05.9]} 33... Kf7 {[%clk 0:00:44.9]} 34. Ng5+ {[%clk 0:00:05.9]}
34... Rxg5 {[%clk 0:00:36.5]} 35. Bxg5 {[%clk 0:00:05.3]} 35... b5 {[%clk
0:00:35.9]} 36. Rb8 {[%clk 0:00:03.4]} 36... Rc5 {[%clk 0:00:35]} 37. Ra8 {[%clk
0:00:02]} 37... Ke6 {[%clk 0:00:31.9]} 38. Ra7 {[%clk 0:00:02.4]} 38... Kd5
{[%clk 0:00:30.9]} 39. Bxe7 {[%clk 0:00:02.6]} 39... Rc6 {[%clk 0:00:26.8]} 40.
Kh2 {[%clk 0:00:02.8]} 40... Kc4 {[%clk 0:00:26.8]} 41. Kg3 {[%clk 0:00:02.5]}
41... Kb3 {[%clk 0:00:26.8]} 42. Kg4 {[%clk 0:00:02.3]} 42... b4 {[%clk
0:00:26.9]} 43. Kg5 {[%clk 0:00:02.5]} 43... a3 {[%clk 0:00:26.3]} 44. Kh6
{[%clk 0:00:02.6]} 44... a2 {[%clk 0:00:26.3]} 45. Bf8 {[%clk 0:00:02.2]} 45...
g5+ {[%clk 0:00:22.2]} 46. Kxg5 {[%clk 0:00:02]} 46... Rg6+ {[%clk 0:00:22.2]}
47. Kh5 {[%clk 0:00:02.1]} 47... Rxg2 {[%clk 0:00:21]} 48. Kh6 {[%clk
0:00:02.3]} 48... Rg1 {[%clk 0:00:20.6]} 49. Bg7 {[%clk 0:00:02.1]} 49... Rxg7
{[%clk 0:00:20.8]} 50. Kxg7 {[%clk 0:00:02.4]} 50... Kb2 {[%clk 0:00:21.3]} 51.
Kxh7 {[%clk 0:00:02.4]} 51... b3 {[%clk 0:00:19.7]} 52. h5 {[%clk 0:00:02.2]}
52... Kb1 {[%clk 0:00:19.6]} 53. h6 {[%clk 0:00:02.7]} 53... b2 {[%clk
0:00:19.8]} 54. Kg7 {[%clk 0:00:03]} 54... a1=Q {[%clk 0:00:19.2]} 0-1

[Event "Early-Titled-Tuesday-Blitz-June-18-2024"]
[Site "Chess.com"]
[Date "2024.06.18"]
[Round "7"]
[White "IndianSchoolOfSuffering"]
[Black "Rurep26"]
[Result "0-1"]
[WhiteElo "2517"]
[BlackElo "2727"]
[TimeControl "180+1"]
[EndTime "9:20:55 PDT"]
[Termination "Rurep26 won by checkmate"]

1. c4 {[%clk 0:03:00.9]} 1... e5 {[%clk 0:02:58.3]} 2. Nc3 {[%clk 0:02:54.3]}
2... Nf6 {[%clk 0:02:57.3]} 3. g3 {[%clk 0:02:50.3]} 3... d5 {[%clk 0:02:52]} 4.
cxd5 {[%clk 0:02:45.1]} 4... Nxd5 {[%clk 0:02:52.9]} 5. Bg2 {[%clk 0:02:45]}
5... Nb6 {[%clk 0:02:52.8]} 6. d3 {[%clk 0:02:45.6]} 6... Nc6 {[%clk 0:02:53]}
7. Bxc6+ {[%clk 0:02:45]} 7... bxc6 {[%clk 0:02:52.7]} 8. Nf3 {[%clk 0:02:45.5]}
8... Bd6 {[%clk 0:02:52.8]} 9. a4 {[%clk 0:02:39.5]} 9... a5 {[%clk 0:02:51.5]}
10. O-O {[%clk 0:02:34.6]} 10... Bh3 {[%clk 0:02:50.1]} 11. Re1 {[%clk 0:02:34]}
11... O-O {[%clk 0:02:51]} 12. Be3 {[%clk 0:02:32.9]} 12... Nd5 {[%clk
0:02:49.5]} 13. Ne4 {[%clk 0:02:29.4]} 13... Nxe3 {[%clk 0:02:48.7]} 14. fxe3
{[%clk 0:02:29.1]} 14... Qb8 {[%clk 0:02:45.6]} 15. Qc2 {[%clk 0:02:27.4]} 15...
Qb6 {[%clk 0:02:43.4]} 16. d4 {[%clk 0:02:18.9]} 16... h6 {[%clk 0:02:24.8]} 17.
Rec1 {[%clk 0:02:09.9]} 17... Bd7 {[%clk 0:02:14]} 18. Rab1 {[%clk 0:02:01.7]}
18... f5 {[%clk 0:02:09.8]} 19. Nc5 {[%clk 0:02:00.9]} 19... Be8 {[%clk
0:01:55.8]} 20. Nxe5 {[%clk 0:01:55.4]} 20... Bxe5 {[%clk 0:01:39.6]} 21. dxe5
{[%clk 0:01:55]} 21... Bh5 {[%clk 0:01:38.7]} 22. Qc4+ {[%clk 0:01:48.8]} 22...
Kh8 {[%clk 0:01:33]} 23. Rc3 {[%clk 0:01:47.1]} 23... Rfe8 {[%clk 0:01:27.8]}
24. e6 {[%clk 0:01:40]} 24... Qa7 {[%clk 0:01:16.1]} 25. Rf1 {[%clk 0:01:25.3]}
25... Bg6 {[%clk 0:00:59.2]} 26. Rf3 {[%clk 0:01:12.1]} 26... Rab8 {[%clk
0:00:55.9]} 27. Nd3 {[%clk 0:01:00.3]} 27... Bh5 {[%clk 0:00:46.1]} 28. Nf4
{[%clk 0:00:50.2]} 28... Bxf3 {[%clk 0:00:43.1]} 29. exf3 {[%clk 0:00:51.1]}
29... Rxb2 {[%clk 0:00:40.7]} 30. Qd3 {[%clk 0:00:45.6]} 30... Qb6 {[%clk
0:00:34.5]} 31. Qxf5 {[%clk 0:00:35.9]} 31... Rb1+ {[%clk 0:00:33.5]} 32. Kg2
{[%clk 0:00:35.3]} 32... Qb2+ {[%clk 0:00:28.3]} 33. Kh3 {[%clk 0:00:35.1]}
33... Qxc3 {[%clk 0:00:21.6]} 34. Ng6+ {[%clk 0:00:28.3]} 34... Kh7 {[%clk
0:00:19]} 35. Qxb1 {[%clk 0:00:19.3]} 35... Qf6 {[%clk 0:00:16.3]} 36. Nf8+
{[%clk 0:00:15]} 36... Kg8 {[%clk 0:00:15.1]} 37. Ng6 {[%clk 0:00:11.3]} 37...
Qxe6+ {[%clk 0:00:11.9]} 38. g4 {[%clk 0:00:10.6]} 38... Qxe3 {[%clk 0:00:12.1]}
39. Qc2 {[%clk 0:00:09.9]} 39... Qxf3+ {[%clk 0:00:10.5]} 40. Kh4 {[%clk
0:00:10.4]} 40... Re2 {[%clk 0:00:07.7]} 41. Qc4+ {[%clk 0:00:09.4]} 41... Kh7
{[%clk 0:00:05.4]} 42. Nf8+ {[%clk 0:00:08]} 42... Kh8 {[%clk 0:00:04.9]} 43.
Ng6+ {[%clk 0:00:07.3]} 43... Kh7 {[%clk 0:00:05.5]} 44. Nf8+ {[%clk 0:00:08]}
44... Qxf8 {[%clk 0:00:05.8]} 45. Qxe2 {[%clk 0:00:08.3]} 45... Qf4 {[%clk
0:00:04.9]} 46. Qd3+ {[%clk 0:00:07]} 46... Kg8 {[%clk 0:00:03.9]} 47. Qd8+
{[%clk 0:00:07]} 47... Kh7 {[%clk 0:00:04.3]} 48. Qd3+ {[%clk 0:00:06.8]} 48...
Kg8 {[%clk 0:00:04.7]} 49. Qd8+ {[%clk 0:00:06.6]} 49... Kf7 {[%clk 0:00:05.3]}
50. Qd7+ {[%clk 0:00:06.3]} 50... Kf8 {[%clk 0:00:05.2]} 51. Qc8+ {[%clk
0:00:05.6]} 51... Ke7 {[%clk 0:00:05]} 52. Qg8 {[%clk 0:00:02.9]} 52... Qxh2#
{[%clk 0:00:04.6]} 0-1

[Event "Early-Titled-Tuesday-Blitz-June-18-2024"]
[Site "Chess.com"]
[Date "2024.06.18"]
[Round "7"]
[White "rookpower2004"]
[Black "dosto07"]
[Result "1-0"]
[WhiteElo "2482"]
[BlackElo "2610"]
[TimeControl "180+1"]
[EndTime "9:20:55 PDT"]
[Termination "rookpower2004 won by resignation"]

1. e4 {[%clk 0:03:00.9]} 1... e5 {[%clk 0:02:49.4]} 2. Nf3 {[%clk 0:03:00]} 2...
Nc6 {[%clk 0:02:48.7]} 3. Bc4 {[%clk 0:02:55.4]} 3... Bc5 {[%clk 0:02:47.6]} 4.
c3 {[%clk 0:02:53.3]} 4... Nf6 {[%clk 0:02:47.7]} 5. d3 {[%clk 0:02:53.8]} 5...
d6 {[%clk 0:02:47.5]} 6. O-O {[%clk 0:02:54.2]} 6... a6 {[%clk 0:02:47.8]} 7. a4
{[%clk 0:02:52.1]} 7... Ba7 {[%clk 0:02:47.7]} 8. Nbd2 {[%clk 0:02:51.2]} 8...
O-O {[%clk 0:02:47]} 9. h3 {[%clk 0:02:50.4]} 9... Re8 {[%clk 0:02:45.2]} 10.
Re1 {[%clk 0:02:50.1]} 10... Be6 {[%clk 0:02:45.2]} 11. Bb3 {[%clk 0:02:47.5]}
11... d5 {[%clk 0:02:44.4]} 12. Bc2 {[%clk 0:02:47]} 12... h6 {[%clk 0:02:43]}
13. Qe2 {[%clk 0:02:45.7]} 13... d4 {[%clk 0:02:42.2]} 14. Nf1 {[%clk
0:02:44.8]} 14... b5 {[%clk 0:02:29.1]} 15. Ng3 {[%clk 0:02:14.8]} 15... b4
{[%clk 0:02:14.3]} 16. cxb4 {[%clk 0:02:10.1]} 16... Nxb4 {[%clk 0:02:14]} 17.
Nxe5 {[%clk 0:02:10.6]} 17... Bxh3 {[%clk 0:01:46.5]} 18. Nxf7 {[%clk
0:02:06.4]} 18... Bg4 {[%clk 0:01:12.7]} 19. Nxd8 {[%clk 0:01:57.4]} 19... Bxe2
{[%clk 0:01:11.9]} 20. Bb3+ {[%clk 0:01:53.1]} 20... Kh7 {[%clk 0:01:03.7]} 21.
Rxe2 {[%clk 0:01:53.5]} 21... Raxd8 {[%clk 0:00:57.1]} 22. Bc4 {[%clk
0:01:52.1]} 22... a5 {[%clk 0:00:49.7]} 23. Bd2 {[%clk 0:01:48.6]} 23... Bc5
{[%clk 0:00:48.7]} 24. Nf5 {[%clk 0:01:42.6]} 24... Nd7 {[%clk 0:00:44.5]} 25.
Rc1 {[%clk 0:01:40.2]} 25... Bb6 {[%clk 0:00:24.2]} 26. Bb5 {[%clk 0:01:39.1]}
26... c6 {[%clk 0:00:22.6]} 27. Bxb4 {[%clk 0:01:34.1]} 27... cxb5 {[%clk
0:00:19.8]} 28. Be7 {[%clk 0:01:29.8]} 28... Rb8 {[%clk 0:00:18.9]} 29. Bd6
{[%clk 0:01:26.5]} 29... Rbc8 {[%clk 0:00:18.1]} 30. Rxc8 {[%clk 0:01:22.4]}
30... Rxc8 {[%clk 0:00:18.3]} 31. axb5 {[%clk 0:01:17.3]} 31... Rc1+ {[%clk
0:00:18.1]} 32. Kh2 {[%clk 0:01:16.9]} 32... g6 {[%clk 0:00:14.5]} 33. Ng3
{[%clk 0:01:11.8]} 33... Rd1 {[%clk 0:00:11.9]} 34. e5 {[%clk 0:01:08]} 34...
Rxd3 {[%clk 0:00:12]} 35. e6 {[%clk 0:01:08.6]} 35... Nf6 {[%clk 0:00:12.1]} 36.
e7 {[%clk 0:01:08.1]} 36... Ne8 {[%clk 0:00:12.6]} 37. Ne4 {[%clk 0:00:57.6]}
37... Rb3 {[%clk 0:00:12.5]} 38. Be5 {[%clk 0:00:53.7]} 38... Kg8 {[%clk
0:00:08.9]} 39. Nf6+ {[%clk 0:00:51.2]} 39... Kf7 {[%clk 0:00:08.7]} 40. Nd5
{[%clk 0:00:45.9]} 40... Rxb5 {[%clk 0:00:07.7]} 41. Nxb6 {[%clk 0:00:41.8]}
41... Rxb6 {[%clk 0:00:07.9]} 42. Bxd4 {[%clk 0:00:37.7]} 42... Rb5 {[%clk
0:00:08]} 43. Bc3 {[%clk 0:00:37.8]} 43... h5 {[%clk 0:00:07.3]} 44. f3 {[%clk
0:00:34.3]} 44... a4 {[%clk 0:00:07.8]} 45. Re4 {[%clk 0:00:33.7]} 45... Rb7
{[%clk 0:00:06.5]} 46. Rxa4 {[%clk 0:00:32.6]} 46... Rxe7 {[%clk 0:00:05.6]} 47.
Ra6 {[%clk 0:00:32.1]} 47... Nc7 {[%clk 0:00:04.7]} 48. Rc6 {[%clk 0:00:31.8]}
48... Nd5 {[%clk 0:00:04.2]} 49. Bd4 {[%clk 0:00:28.8]} 49... Nf4 {[%clk
0:00:03.9]} 50. Rf6+ {[%clk 0:00:27.4]} 50... Ke8 {[%clk 0:00:04.2]} 51. Rxf4
{[%clk 0:00:28.3]} 51... Re2 {[%clk 0:00:04.2]} 52. Re4+ {[%clk 0:00:28.5]}
52... Rxe4 {[%clk 0:00:03.6]} 53. fxe4 {[%clk 0:00:29.4]} 53... Ke7 {[%clk
0:00:03.9]} 54. b4 {[%clk 0:00:29.1]} 54... g5 {[%clk 0:00:04.8]} 55. Bc5+
{[%clk 0:00:28.7]} 55... Ke6 {[%clk 0:00:05.7]} 56. b5 {[%clk 0:00:29.2]} 56...
g4 {[%clk 0:00:06.6]} 57. b6 {[%clk 0:00:29.3]} 57... h4 {[%clk 0:00:07.5]} 58.
g3 {[%clk 0:00:28.9]} 58... h3 {[%clk 0:00:07.2]} 59. b7 {[%clk 0:00:28.9]}
59... Ke5 {[%clk 0:00:06.4]} 60. b8=Q+ {[%clk 0:00:29.8]} 60... Kxe4 {[%clk
0:00:06.4]} 61. Qf4+ {[%clk 0:00:30]} 61... Kd3 {[%clk 0:00:06.9]} 62. Qxg4
{[%clk 0:00:30.9]} 62... Kd2 {[%clk 0:00:05.8]} 63. Qf3 {[%clk 0:00:30.8]} 1-0

[Event "Early-Titled-Tuesday-Blitz-June-18-2024"]
[Site "Chess.com"]
[Date "2024.06.18"]
[Round "7"]
[White "kinga2008"]
[Black "Chempiblinka"]
[Result "1-0"]
[WhiteElo "2563"]
[BlackElo "2352"]
[TimeControl "180+1"]
[EndTime "9:20:56 PDT"]
[Termination "kinga2008 won on time"]

1. e4 {[%clk 0:03:00.9]} 1... c5 {[%clk 0:02:57.8]} 2. Nf3 {[%clk 0:03:00.6]}
2... Nc6 {[%clk 0:02:57.1]} 3. c3 {[%clk 0:02:52.4]} 3... g6 {[%clk 0:02:56]} 4.
d4 {[%clk 0:02:47.8]} 4... cxd4 {[%clk 0:02:55.5]} 5. cxd4 {[%clk 0:02:48.7]}
5... Bg7 {[%clk 0:02:56]} 6. Nc3 {[%clk 0:02:48.7]} 6... d6 {[%clk 0:02:54]} 7.
Bc4 {[%clk 0:02:47.2]} 7... Nf6 {[%clk 0:02:49.3]} 8. O-O {[%clk 0:02:45.9]}
8... O-O {[%clk 0:02:49.5]} 9. Bg5 {[%clk 0:02:42.4]} 9... Qb6 {[%clk
0:02:42.2]} 10. Qd2 {[%clk 0:02:39]} 10... Bg4 {[%clk 0:02:31.4]} 11. Bxf6
{[%clk 0:02:33.2]} 11... exf6 {[%clk 0:02:30.5]} 12. Nd5 {[%clk 0:02:31.6]}
12... Qd8 {[%clk 0:02:26.3]} 13. Ne1 {[%clk 0:02:29.4]} 13... Bd7 {[%clk
0:02:14.1]} 14. Nc2 {[%clk 0:02:25]} 14... f5 {[%clk 0:02:13.9]} 15. Qf4 {[%clk
0:02:14.8]} 15... Rc8 {[%clk 0:01:56.4]} 16. Qxd6 {[%clk 0:02:09.9]} 16... fxe4
{[%clk 0:01:38.4]} 17. Nde3 {[%clk 0:01:54.1]} 17... Qc7 {[%clk 0:01:15.8]} 18.
Qxc7 {[%clk 0:01:46.2]} 18... Rxc7 {[%clk 0:01:15.7]} 19. Rfd1 {[%clk
0:01:40.7]} 19... Na5 {[%clk 0:00:58.8]} 20. Be2 {[%clk 0:01:27.9]} 20... Rfc8
{[%clk 0:00:57.7]} 21. Nb4 {[%clk 0:01:25.9]} 21... Ba4 {[%clk 0:00:48.4]} 22.
b3 {[%clk 0:01:25.6]} 22... Be8 {[%clk 0:00:43.8]} 23. Nbd5 {[%clk 0:01:20.1]}
23... Rd7 {[%clk 0:00:43.1]} 24. Bb5 {[%clk 0:01:17]} 24... Nc6 {[%clk
0:00:33.6]} 25. Rac1 {[%clk 0:01:11.3]} 25... Kf8 {[%clk 0:00:28.3]} 26. Rc4
{[%clk 0:01:00.2]} 26... f5 {[%clk 0:00:27.9]} 27. Bxc6 {[%clk 0:00:57.9]} 27...
bxc6 {[%clk 0:00:27.3]} 28. Nb4 {[%clk 0:00:54.1]} 28... Rb7 {[%clk 0:00:20.7]}
29. Rdc1 {[%clk 0:00:48.5]} 29... Rb6 {[%clk 0:00:17.8]} 30. d5 {[%clk
0:00:40.6]} 30... c5 {[%clk 0:00:17]} 31. a3 {[%clk 0:00:30.3]} 31... a5 {[%clk
0:00:12.5]} 32. Na2 {[%clk 0:00:24]} 32... Rxb3 {[%clk 0:00:12.3]} 33. g3 {[%clk
0:00:18.1]} 33... Rb2 {[%clk 0:00:08.4]} 34. Nc3 {[%clk 0:00:16.3]} 34... Bd4
{[%clk 0:00:07.1]} 35. d6 {[%clk 0:00:14.7]} 35... Rd8 {[%clk 0:00:04.7]} 36.
Na4 {[%clk 0:00:09.1]} 36... Rxd6 {[%clk 0:00:04.5]} 37. Nxb2 {[%clk 0:00:09.2]}
37... Bxb2 {[%clk 0:00:04.7]} 38. Rb1 {[%clk 0:00:05.8]} 38... Bxa3 {[%clk
0:00:04.9]} 39. Rb8 {[%clk 0:00:06.5]} 39... Bb4 {[%clk 0:00:05.3]} 40. Rc2
{[%clk 0:00:05.6]} 40... Ke7 {[%clk 0:00:05.4]} 41. Nc4 {[%clk 0:00:05.6]} 41...
Rd1+ {[%clk 0:00:04.5]} 42. Kg2 {[%clk 0:00:05.7]} 42... a4 {[%clk 0:00:04.5]}
43. Ra2 {[%clk 0:00:04.7]} 43... Rc1 {[%clk 0:00:03.8]} 44. Rb7+ {[%clk
0:00:05.3]} 44... Ke6 {[%clk 0:00:03.1]} 45. Rb6+ {[%clk 0:00:06]} 45... Kf7
{[%clk 0:00:02.4]} 46. Ne5+ {[%clk 0:00:06.2]} 46... Ke7 {[%clk 0:00:02.4]} 47.
Rb7+ {[%clk 0:00:06.3]} 47... Kd6 {[%clk 0:00:02.1]} 48. Nf7+ {[%clk 0:00:06.1]}
1-0

[Event "Early-Titled-Tuesday-Blitz-June-18-2024"]
[Site "Chess.com"]
[Date "2024.06.18"]
[Round "7"]
[White "chess123456s"]
[Black "stasOR4ik"]
[Result "1/2-1/2"]
[WhiteElo "2612"]
[BlackElo "2463"]
[TimeControl "180+1"]
[EndTime "9:20:58 PDT"]
[Termination "Game drawn - insufficient material"]

1. Nf3 {[%clk 0:02:55.3]} 1... d5 {[%clk 0:02:59.5]} 2. b3 {[%clk 0:02:55.1]}
2... g6 {[%clk 0:02:58.8]} 3. Bb2 {[%clk 0:02:55.4]} 3... Nf6 {[%clk 0:02:59.5]}
4. g3 {[%clk 0:02:54.9]} 4... Bg7 {[%clk 0:02:59.8]} 5. Bg2 {[%clk 0:02:55.6]}
5... O-O {[%clk 0:03:00.2]} 6. O-O {[%clk 0:02:56.2]} 6... Re8 {[%clk
0:03:00.4]} 7. c4 {[%clk 0:02:53.4]} 7... c6 {[%clk 0:03:00.2]} 8. d3 {[%clk
0:02:52.7]} 8... Nbd7 {[%clk 0:02:59.3]} 9. Nc3 {[%clk 0:02:49.7]} 9... e5
{[%clk 0:02:58.5]} 10. cxd5 {[%clk 0:02:49.7]} 10... Nxd5 {[%clk 0:02:57]} 11.
Nxd5 {[%clk 0:02:47.5]} 11... cxd5 {[%clk 0:02:57.9]} 12. e4 {[%clk 0:02:48.4]}
12... Nc5 {[%clk 0:02:50.6]} 13. Rc1 {[%clk 0:02:46.9]} 13... dxe4 {[%clk
0:02:49.5]} 14. dxe4 {[%clk 0:02:46.1]} 14... Qxd1 {[%clk 0:02:27.1]} 15. Rfxd1
{[%clk 0:02:43.7]} 15... Nxe4 {[%clk 0:02:27.7]} 16. Rc7 {[%clk 0:02:25]} 16...
f6 {[%clk 0:02:08]} 17. Nxe5 {[%clk 0:02:12.9]} 17... Nxf2 {[%clk 0:02:08.2]}
18. Bd5+ {[%clk 0:02:02.9]} 18... Be6 {[%clk 0:02:03.4]} 19. Bxe6+ {[%clk
0:02:02]} 19... Rxe6 {[%clk 0:02:03.2]} 20. Rdd7 {[%clk 0:02:02.6]} 20... Bf8
{[%clk 0:01:45.9]} 21. Nf3 {[%clk 0:01:48.7]} 21... Ne4 {[%clk 0:01:31.3]} 22.
Rxh7 {[%clk 0:01:31.2]} 22... Rd8 {[%clk 0:01:22.5]} 23. Rhd7 {[%clk 0:01:29.4]}
23... Rxd7 {[%clk 0:01:15.8]} 24. Rxd7 {[%clk 0:01:30.3]} 24... b5 {[%clk
0:01:12.8]} 25. Kg2 {[%clk 0:01:24.8]} 25... Nc5 {[%clk 0:01:05.5]} 26. Rd2
{[%clk 0:01:23]} 26... a6 {[%clk 0:01:03.9]} 27. Nd4 {[%clk 0:01:16.3]} 27...
Rd6 {[%clk 0:00:58.7]} 28. Ba3 {[%clk 0:01:13.5]} 28... Rd5 {[%clk 0:00:58.1]}
29. Bb2 {[%clk 0:01:01.6]} 29... Kf7 {[%clk 0:00:54.6]} 30. Kf3 {[%clk 0:01:00]}
30... Ne6 {[%clk 0:00:53.4]} 31. Ke4 {[%clk 0:00:45.1]} 31... Rd7 {[%clk
0:00:48.5]} 32. Nf3 {[%clk 0:00:41.6]} 32... f5+ {[%clk 0:00:44]} 33. Ke3 {[%clk
0:00:37.8]} 33... Bh6+ {[%clk 0:00:43.3]} 34. Ke2 {[%clk 0:00:38.3]} 34... Bxd2
{[%clk 0:00:41.4]} 35. Ne5+ {[%clk 0:00:37.8]} 35... Ke7 {[%clk 0:00:34.2]} 36.
Nxd7 {[%clk 0:00:38]} 36... Kxd7 {[%clk 0:00:26.5]} 37. Kxd2 {[%clk 0:00:38.2]}
37... Kd6 {[%clk 0:00:26.1]} 38. Ke3 {[%clk 0:00:38.2]} 38... Kd5 {[%clk
0:00:25.4]} 39. Bc3 {[%clk 0:00:37.5]} 39... Ng5 {[%clk 0:00:24]} 40. Kf4 {[%clk
0:00:33.6]} 40... Ne4 {[%clk 0:00:21.8]} 41. Be1 {[%clk 0:00:33.2]} 41... Kd4
{[%clk 0:00:20.4]} 42. g4 {[%clk 0:00:33.1]} 42... fxg4 {[%clk 0:00:20]} 43.
Kxg4 {[%clk 0:00:33.3]} 43... Kd3 {[%clk 0:00:20.1]} 44. Kf4 {[%clk 0:00:31.8]}
44... g5+ {[%clk 0:00:20.3]} 45. Kf5 {[%clk 0:00:30.3]} 45... Kd4 {[%clk
0:00:19.7]} 46. h3 {[%clk 0:00:27.7]} 46... Ke3 {[%clk 0:00:19.7]} 47. Ba5
{[%clk 0:00:24.9]} 47... Kf3 {[%clk 0:00:19]} 48. Bd8 {[%clk 0:00:21.4]} 48...
Nf2 {[%clk 0:00:17.8]} 49. Bxg5 {[%clk 0:00:15.3]} 49... Nxh3 {[%clk 0:00:18]}
50. Bd8 {[%clk 0:00:15.3]} 50... Ke3 {[%clk 0:00:17]} 51. Ke5 {[%clk 0:00:12.2]}
51... Kd3 {[%clk 0:00:16.3]} 52. Kd5 {[%clk 0:00:12.6]} 52... Nf4+ {[%clk
0:00:14.3]} 53. Kc6 {[%clk 0:00:12.2]} 53... Kc3 {[%clk 0:00:13.2]} 54. Bf6+
{[%clk 0:00:11.4]} 54... Kb4 {[%clk 0:00:13.3]} 55. Be7+ {[%clk 0:00:10.1]}
55... Kc3 {[%clk 0:00:13.6]} 56. Kb6 {[%clk 0:00:10.3]} 56... Kb2 {[%clk
0:00:13]} 57. Kxa6 {[%clk 0:00:10.6]} 57... Kxa2 {[%clk 0:00:13.1]} 58. b4
{[%clk 0:00:10.4]} 58... Kb3 {[%clk 0:00:12.1]} 59. Kxb5 {[%clk 0:00:10]} 59...
Nd5 {[%clk 0:00:12.8]} 60. Bc5 {[%clk 0:00:10]} 60... Nxb4 {[%clk 0:00:13.1]}
1/2-1/2

[Event "Early-Titled-Tuesday-Blitz-June-18-2024"]
[Site "Chess.com"]
[Date "2024.06.18"]
[Round "7"]
[White "Acva-Alenok"]
[Black "chezzgirl04"]
[Result "0-1"]
[WhiteElo "2391"]
[BlackElo "2243"]
[TimeControl "180+1"]
[EndTime "9:20:58 PDT"]
[Termination "chezzgirl04 won on time"]

1. d4 {[%clk 0:03:00.9]} 1... d5 {[%clk 0:02:08.4]} 2. c4 {[%clk 0:02:53.1]}
2... e6 {[%clk 0:02:08.5]} 3. Nf3 {[%clk 0:02:51.4]} 3... Nf6 {[%clk 0:02:08.5]}
4. g3 {[%clk 0:02:50.7]} 4... Be7 {[%clk 0:02:08.7]} 5. Bg2 {[%clk 0:02:49.9]}
5... O-O {[%clk 0:02:08.8]} 6. O-O {[%clk 0:02:50]} 6... b6 {[%clk 0:02:09.2]}
7. Ne5 {[%clk 0:02:49.2]} 7... Bb7 {[%clk 0:02:08.3]} 8. Nc3 {[%clk 0:02:47.9]}
8... Nbd7 {[%clk 0:02:08.2]} 9. Qa4 {[%clk 0:02:47.2]} 9... c5 {[%clk
0:02:06.8]} 10. Nxd7 {[%clk 0:02:45.6]} 10... Nxd7 {[%clk 0:02:04]} 11. cxd5
{[%clk 0:02:43.2]} 11... exd5 {[%clk 0:02:02.9]} 12. Nxd5 {[%clk 0:02:41.4]}
12... Bxd5 {[%clk 0:02:02.6]} 13. Bxd5 {[%clk 0:02:42.3]} 13... Rc8 {[%clk
0:02:01.9]} 14. Bb7 {[%clk 0:01:54.5]} 14... Rc7 {[%clk 0:02:01]} 15. Bg2 {[%clk
0:01:55]} 15... Bf6 {[%clk 0:01:50.8]} 16. Bf4 {[%clk 0:01:52.3]} 16... Rc8
{[%clk 0:01:45.5]} 17. Bd6 {[%clk 0:01:27.5]} 17... Re8 {[%clk 0:01:45.3]} 18.
Bc6 {[%clk 0:01:17.2]} 18... Rxc6 {[%clk 0:01:40.6]} 19. Qxc6 {[%clk 0:01:18.1]}
19... Bxd4 {[%clk 0:01:41]} 20. e3 {[%clk 0:01:12.2]} 20... Bxb2 {[%clk
0:01:23.9]} 21. Rad1 {[%clk 0:01:12]} 21... Qc8 {[%clk 0:01:23.9]} 22. Qxc8
{[%clk 0:00:40.3]} 22... Rxc8 {[%clk 0:01:24]} 23. Rb1 {[%clk 0:00:40.9]} 23...
Be5 {[%clk 0:01:03.9]} 24. Rfd1 {[%clk 0:00:40.4]} 24... g6 {[%clk 0:00:52.9]}
25. a4 {[%clk 0:00:39]} 25... c4 {[%clk 0:00:49.2]} 26. Bb4 {[%clk 0:00:33.1]}
26... Nc5 {[%clk 0:00:43.7]} 27. Bxc5 {[%clk 0:00:30.8]} 27... Rxc5 {[%clk
0:00:43.4]} 28. Rb5 {[%clk 0:00:31.1]} 28... Rxb5 {[%clk 0:00:29.7]} 29. axb5
{[%clk 0:00:32]} 29... Bb2 {[%clk 0:00:29.9]} 30. Kf1 {[%clk 0:00:24.1]} 30...
c3 {[%clk 0:00:27.5]} 31. Rd8+ {[%clk 0:00:22.2]} 31... Kg7 {[%clk 0:00:20.6]}
32. Rc8 {[%clk 0:00:23.1]} 32... Kf6 {[%clk 0:00:20.6]} 33. Ke2 {[%clk
0:00:23.1]} 33... Ke6 {[%clk 0:00:18.3]} 34. Kd3 {[%clk 0:00:23.6]} 34... Kd7
{[%clk 0:00:18.5]} 35. Ra8 {[%clk 0:00:23.1]} 35... Kd6 {[%clk 0:00:17.5]} 36.
Rxa7 {[%clk 0:00:23.2]} 36... Kc5 {[%clk 0:00:17.7]} 37. Rxf7 {[%clk 0:00:21.6]}
37... Kxb5 {[%clk 0:00:18.1]} 38. e4 {[%clk 0:00:19.1]} 38... Kc6 {[%clk
0:00:18]} 39. f4 {[%clk 0:00:18.4]} 39... b5 {[%clk 0:00:18.4]} 40. Rf6+ {[%clk
0:00:15.6]} 40... Kc5 {[%clk 0:00:18.4]} 41. Rf8 {[%clk 0:00:14.9]} 41... b4
{[%clk 0:00:18.6]} 42. e5 {[%clk 0:00:12]} 42... b3 {[%clk 0:00:17.9]} 43. e6
{[%clk 0:00:09.6]} 43... Kd6 {[%clk 0:00:17.1]} 44. Rb8 {[%clk 0:00:07.6]} 44...
c2 {[%clk 0:00:15.8]} 45. Rc8 {[%clk 0:00:06.3]} 45... c1=Q {[%clk 0:00:15.2]}
46. Rxc1 {[%clk 0:00:06.7]} 46... Bxc1 {[%clk 0:00:15.7]} 0-1